Workbook

Sheet Eingaben
B2: Preisbildung im Polypol (vollkommener Markt)
C4: Kapazitäts- | F4: Produktions- | I4: Stück- | K4: Toleranzbereich
C5: grenze (Xmax) | F5: menge | I5: preis | K5: für den Betriebserfolg
H6: Erlös | J6: =Tabellen!H5 -> 95040 | K6: Verlust | L6: 0
B7: Funktionen | C7: aX3 | D7: bX2 | E7: cX | F7: d | G7: d/X | H7: Gesamtkosten | J7: =Tabellen!H4 -> 54186.31594 | K7: Gewinn | L7: 10000
B8: Gesamtkosten | C8: 0.038 | D8: -8.04 | E8: 824.45 | F8: 6000 | H8: variable Gesamtkosten | J8: =Tabellen!H7 -> 48186.31594
B9: variable Gesamtkosten | C9: =C8 -> 0.038 | D9: =D8 -> -8.04 | E9: =E8 -> 824.45 | H9: Stückkosten | J9: =Tabellen!H6 -> 456.1137705
B10: Stückkosten | D10: =C8 -> 0.038 | E10: =D8 -> -8.04 | F10: =E8 -> 824.45 | G10: =F8 -> 6000 | H10: variable Stückkosten | J10: =Tabellen!H9 -> 405.60872
B11: variable Stückkosten | D11: =D10 -> 0.038 | E11: =E10 -> -8.04 | F11: =F10 -> 824.45 | H11: Grenzkosten | J11: =Tabellen!H10 -> 51155.70893
B12: Grenzkosten | D12: =Tabellen!C9 -> 0.114 | E12: =Tabellen!D9 -> -16.08 | F12: =Tabellen!E9 -> 824.45 | H12: Gewinn/Verlust | J12: =Tabellen!H3 -> 40853.68406
B14: Tabellen und Grafiken
B19: Extrempunkte | C19: € | D19: Menge
B20: Gewinnmaximum | C20: =Tabellen!J3 -> 43884.29107 | D20: =Tabellen!K3 -> 138.6 | E20: größter Gesamtgewinn; größte Differenz zwischen Erlös und Kosten
B21: Betriebsminimum | C21: =Tabellen!J4 -> 399.17768 | D21: =Tabellen!K4 -> 105.6 | E21: Minimum der variablen Stückkosten; Deckung der fixen Kosten
B22: Betriebsoptimum | C22: =Tabellen!J5 -> 454.2138558 | D22: =Tabellen!K5 -> 455.40176 | E22: Minimum der gesamten Stückkosten; geringste Kostensteigung
B24: Klicken Sie auf den Button "Kostenfunktion" und tragen Sie die Funktion entsprechend den Potenzen in die dafür vorgesehenen Felder ein.
B25: Sie können einen Toleranzbereich für Gewinnerwartungen (akzeptierter Verlust bzw. Mindestgewinn) angeben.
B26: Durch Eingabe einer Kapazitätsgrenze bestimmen Sie den Ausgabebereich der Tabellen und Grafiken.
B27: Nach Festlegung der Produktionsmenge und des Stückpreises können Sie Erlöse, Kosten und Gewinne ablesen.

Sheet Tabellen
B1: aX3 | C1: bX2 | D1: cX | E1: d | F1: d/X | G1: Ausgabewerte | J1: € | K1: Mengen
A2: K= | B2: =Eingaben!C8 -> 0.038 | C2: =Eingaben!D8 -> -8.04 | D2: =Eingaben!E8 -> 824.45 | E2: =Eingaben!F8 -> 6000 | G2: X | H2: 120 | I2: p | J2: 800 | L2: Gesamtanalyse | O2: Stückanalyse | R2: Gewinnanalyse
A3: Kv= | B3: =B2 -> 0.038 | C3: =C2 -> -8.04 | D3: =D2 -> 824.45 | G3: G | H3: =VLOOKUP(H2,A13:K113,11) -> 40853.68406 | I3: Gmax | J3: =MAX(K13:K113) -> 43884.29107 | K3: =VLOOKUP(J3,K13:L113,2,FALSE) -> 138.6 | L3: Gewinnmaximum | O3: Gewinnmaximum | R3: gewinnmaximlae Menge
A4: Kf= | E4: =E2 -> 6000 | G4: K | H4: =VLOOKUP(H2,A13:K113,2) -> 54186.31594 | I4: kvmin | J4: =MIN(H13:H113) -> 399.17768 | K4: =VLOOKUP(J4,H14:L113,5,FALSE) -> 105.6 | L4: X-Werte | M4: Y-Werte | O4: X-Werte | P4: Y-Werte | R4: X-Werte | S4: Y-Werte
A5: E= | D5: =J2 -> 800 | G5: E | H5: =VLOOKUP(H2,A13:K113,3) -> 95040 | I5: kmin | J5: =MIN(F13:F113) -> 454.2138558 | K5: =VLOOKUP(J5,F14:L113,5,FALSE) -> 455.40176 | L5: Menge | O5: Menge | R5: =K3 -> 138.6 | S5: 0
A6: k= | C6: =$B$2 -> 0.038 | D6: =$C$2 -> -8.04 | E6: =$D$2 -> 824.45 | F6: =$E$2 -> 6000 | G6: k | H6: =VLOOKUP(H2,A13:K113,6) -> 456.1137705 | L6: =K3 -> 138.6 | M6: 0 | O6: =K3 -> 138.6 | P6: 0 | R6: =K3 -> 138.6 | S6: =J3 -> 43884.29107
A7: kv= | C7: =$B$2 -> 0.038 | D7: =$C$2 -> -8.04 | E7: =$D$2 -> 824.45 | G7: Kv | H7: =VLOOKUP(H2,A13:K113,4) -> 48186.31594 | L7: =K3 -> 138.6 | M7: =VLOOKUP(L7,A13:C113,3,FALSE) -> 110880 | O7: =K3 -> 138.6 | P7: =J2 -> 800 | R7: maximaler Gewinn
A8: kf= | F8: =$E$2 -> 6000 | G8: Kf | H8: =VLOOKUP(H2,A13:K113,5) -> 6000 | L8: Erlös | O8: Betriebsminimum | R8: X-Werte | S8: Y-Werte
A9: K' | C9: =3*$B$2 -> 0.114 | D9: =2*$C$2 -> -16.08 | E9: =$D$2 -> 824.45 | G9: kv | H9: =VLOOKUP(H2,A13:K113,8) -> 405.60872 | L9: =K6 -> 0 | M9: =M7 -> 110880 | O9: Menge | R9: =N4 -> 0 | S9: =J3 -> 43884.29107
A10: Xmax | B10: 220 | G10: K' | H10: =VLOOKUP(H2,A13:K113,9) -> 51155.70893 | L10: =K3 -> 138.6 | M10: =VLOOKUP(L10,A16:C116,3,FALSE) -> 110880 | O10: X-Werte | P10: Y-Werte | R10: =K3 -> 138.6 | S10: =J3 -> 43884.29107
O11: =K4 -> 105.6 | P11: 0
A12: X | B12: K | C12: E | D12: Kv | E12: Kf | F12: k | G12: p | H12: kv | I12: E-Gmax | J12: K' | K12: E-K | L12: X | O12: =K4 -> 105.6 | P12: =J4 -> 399.17768
A13: 0 | B13: =($B$2*(A13*A13*A13))+($C$2*(A13*A13))+($D$2*A13)+($E$2) -> 6000 | C13: =$D$5*A13 -> 0 | D13: =B13-$E$4 -> 0 | E13: =$E$4 -> 6000 | I13: =C13-$J$3 -> -43884.29107 | K13: =C13-B13 -> -6000 | L13: 0 | O13: minimale variable Stückkosten
A14: =B10/100 -> 2.2 | B14: =($B$2*(A14*A14*A14))+($C$2*(A14*A14))+($D$2*A14)+($E$2) -> 7775.281024 | C14: =$D$5*A14 -> 1760 | D14: =B14-$E$4 -> 1775.281024 | E14: =$E$4 -> 6000 | F14: =($C$6*(A14*A14))+($D$6*A14)+($E$6)+($F$6/A14) -> 3534.218647 | G14: =$J$2 -> 800 | H14: =($C$7*(A14*A14))+($D$7*A14)+($E$7) -> 806.94592 | I14: =C14-$J$3 -> -42124.29107 | J14: =($C$9*(A14*A14))+($D$9*A14)+($E$9) -> 789.62576 | K14: -6015.281024 | L14: =L113/100 -> 2.2 | O14: X-Werte | P14: Y-Werte
A15: =A14+$A$14 -> 4.4 | B15: =($B$2*(A15*A15*A15))+($C$2*(A15*A15))+($D$2*A15)+($E$2) -> 9475.162592 | C15: 3520 | D15: =B15-$E$4 -> 3475.162592 | E15: =$E$4 -> 6000 | F15: =($C$6*(A15*A15))+($D$6*A15)+($E$6)+($F$6/A15) -> 2153.446044 | G15: =$J$2 -> 800 | H15: =($C$7*(A15*A15))+($D$7*A15)+($E$7) -> 789.80968 | I15: -40364.29107 | J15: 755.90504 | K15: -5955.162592 | L15: =L14+$L$14 -> 4.4 | O15: 0 | P15: =J4 -> 399.17768
A16: =A15+$A$14 -> 6.6 | B16: =($B$2*(A16*A16*A16))+($C$2*(A16*A16))+($D$2*A16)+($E$2) -> 11102.07245 | C16: =$D$5*A16 -> 5280 | D16: =B16-$E$4 -> 5102.072448 | E16: =$E$4 -> 6000 | F16: =($C$6*(A16*A16))+($D$6*A16)+($E$6)+($F$6/A16) -> 1682.132189 | G16: 800 | H16: =($C$7*(A16*A16))+($D$7*A16)+($E$7) -> 773.04128 | I16: -38604.29107 | J16: 723.28784 | K16: -5822.072448 | L16: 6.6 | O16: =K4 -> 105.6 | P16: =J4 -> 399.17768
A17: 8.8 | B17: =($B$2*(A17*A17*A17))+($C$2*(A17*A17))+($D$2*A17)+($E$2) -> 12658.43834 | C17: 7040 | D17: =B17-$E$4 -> 6658.438336 | E17: =$E$4 -> 6000 | F17: =($C$6*(A17*A17))+($D$6*A17)+($E$6)+($F$6/A17) -> 1438.458902 | G17: 800 | H17: =($C$7*(A17*A17))+($D$7*A17)+($E$7) -> 756.64072 | I17: -36844.29107 | J17: 691.77416 | K17: -5618.438336 | L17: 8.8
A18: 11 | B18: =($B$2*(A18*A18*A18))+($C$2*(A18*A18))+($D$2*A18)+($E$2) -> 14146.688 | C18: =$D$5*A18 -> 8800 | D18: =B18-$E$4 -> 8146.688 | E18: =$E$4 -> 6000 | F18: =($C$6*(A18*A18))+($D$6*A18)+($E$6)+($F$6/A18) -> 1286.062545 | G18: 800 | H18: =($C$7*(A18*A18))+($D$7*A18)+($E$7) -> 740.608 | I18: -35084.29107 | J18: 661.364 | K18: -5346.688 | L18: 11
A19: 13.2 | B19: 15569.24918 | C19: 10560 | D19: 9569.249184 | E19: 6000 | F19: 1179.488575 | G19: 800 | H19: 724.94312 | I19: -33324.29107 | J19: 632.05736 | K19: -5009.249184 | L19: 13.2
A20: 15.4 | B20: =($B$2*(A20*A20*A20))+($C$2*(A20*A20))+($D$2*A20)+($E$2) -> 16928.54963 | C20: =$D$5*A20 -> 12320 | D20: =B20-$E$4 -> 10928.54963 | E20: =$E$4 -> 6000 | F20: =($C$6*(A20*A20))+($D$6*A20)+($E$6)+($F$6/A20) -> 1099.25647 | G20: 800 | H20: =($C$7*(A20*A20))+($D$7*A20)+($E$7) -> 709.64608 | I20: -31564.29107 | J20: 603.85424 | K20: -4608.549632 | L20: 15.4
A21: 17.6 | B21: 18227.01709 | C21: 14080 | D21: 12227.01709 | E21: 6000 | F21: 1035.625971 | G21: 800 | H21: 694.71688 | I21: -29804.29107 | J21: 576.75464 | K21: -4147.017088 | L21: 17.6
A22: 19.8 | B22: =($B$2*(A22*A22*A22))+($C$2*(A22*A22))+($D$2*A22)+($E$2) -> 19467.0793 | C22: =$D$5*A22 -> 15840 | D22: =B22-$E$4 -> 13467.0793 | E22: =$E$4 -> 6000 | F22: =($C$6*(A22*A22))+($D$6*A22)+($E$6)+($F$6/A22) -> 983.185823 | G22: 800 | H22: =($C$7*(A22*A22))+($D$7*A22)+($E$7) -> 680.15552 | I22: -28044.29107 | J22: 550.75856 | K22: -3627.079296 | L22: 19.8
A23: 22 | B23: 20651.164 | C23: 17600 | D23: 14651.164 | E23: 6000 | F23: 938.6892727 | G23: 800 | H23: 665.962 | I23: -26284.29107 | J23: 525.866 | K23: -3051.164 | L23: 22
A24: 24.2 | B24: =($B$2*(A24*A24*A24))+($C$2*(A24*A24))+($D$2*A24)+($E$2) -> 21781.69894 | C24: =$D$5*A24 -> 19360 | D24: =B24-$E$4 -> 15781.69894 | E24: =$E$4 -> 6000 | F24: =($C$6*(A24*A24))+($D$6*A24)+($E$6)+($F$6/A24) -> 900.0702043 | G24: 800 | H24: =($C$7*(A24*A24))+($D$7*A24)+($E$7) -> 652.13632 | I24: -24524.29107 | J24: 502.07696 | K24: -2421.698944 | L24: 24.2
A25: 26.4 | B25: 22861.11187 | C25: 21120 | D25: 16861.11187 | E25: 6000 | F25: 865.9512073 | G25: 800 | H25: 638.67848 | I25: -22764.29107 | J25: 479.39144 | K25: -1741.111872 | L25: 26.4
A26: 28.6 | B26: =($B$2*(A26*A26*A26))+($C$2*(A26*A26))+($D$2*A26)+($E$2) -> 23891.83053 | C26: =$D$5*A26 -> 22880 | D26: =B26-$E$4 -> 17891.83053 | E26: =$E$4 -> 6000 | F26: =($C$6*(A26*A26))+($D$6*A26)+($E$6)+($F$6/A26) -> 835.3786898 | G26: 800 | H26: =($C$7*(A26*A26))+($D$7*A26)+($E$7) -> 625.58848 | I26: -21004.29107 | J26: 457.80944 | K26: -1011.830528 | L26: 28.6
A27: 30.8 | B27: 24876.28266 | C27: 24640 | D27: 18876.28266 | E27: 6000 | F27: 807.6715148 | G27: 800 | H27: 612.86632 | I27: -19244.29107 | J27: 437.33096 | K27: -236.282656 | L27: 30.8
A28: 33 | B28: =($B$2*(A28*A28*A28))+($C$2*(A28*A28))+($D$2*A28)+($E$2) -> 25816.896 | C28: =$D$5*A28 -> 26400 | D28: =B28-$E$4 -> 19816.896 | E28: =$E$4 -> 6000 | F28: =($C$6*(A28*A28))+($D$6*A28)+($E$6)+($F$6/A28) -> 782.3301818 | G28: 800 | H28: =($C$7*(A28*A28))+($D$7*A28)+($E$7) -> 600.512 | I28: -17484.29107 | J28: 417.956 | K28: 583.104 | L28: 33
A29: 35.2 | B29: =($B$2*(A29*A29*A29))+($C$2*(A29*A29))+($D$2*A29)+($E$2) -> 26716.0983 | C29: =$D$5*A29 -> 28160 | D29: =B29-$E$4 -> 20716.0983 | E29: =$E$4 -> 6000 | F29: =($C$6*(A29*A29))+($D$6*A29)+($E$6)+($F$6/A29) -> 758.9800655 | G29: 800 | H29: =($C$7*(A29*A29))+($D$7*A29)+($E$7) -> 588.52552 | I29: -15724.29107 | J29: 399.68456 | K29: 1443.901696 | L29: 35.2
A30: 37.4 | B30: =($B$2*(A30*A30*A30))+($C$2*(A30*A30))+($D$2*A30)+($E$2) -> 27576.31731 | C30: =$D$5*A30 -> 29920 | D30: =B30-$E$4 -> 21576.31731 | E30: =$E$4 -> 6000 | F30: =($C$6*(A30*A30))+($D$6*A30)+($E$6)+($F$6/A30) -> 737.3346875 | G30: 800 | H30: =($C$7*(A30*A30))+($D$7*A30)+($E$7) -> 576.90688 | I30: -13964.29107 | J30: 382.51664 | K30: 2343.682688 | L30: 37.4
A31: =A30+$A$14 -> 39.6 | B31: 28399.98077 | C31: 31680 | D31: 22399.98077 | E31: 6000 | F31: 717.1712315 | G31: 800 | H31: 565.65608 | I31: -12204.29107 | J31: 366.45224 | K31: 3280.019232 | L31: 39.6
A32: 41.8 | B32: 29189.51642 | C32: 33440 | D32: 23189.51642 | E32: 6000 | F32: 698.3137899 | G32: 800 | H32: 554.77312 | I32: -10444.29107 | J32: 351.49136 | K32: 4250.483584 | L32: 41.8
A33: 44 | B33: 29947.352 | C33: 35200 | D33: 23947.352 | E33: 6000 | F33: 680.6216364 | G33: 800 | H33: 544.258 | I33: -8684.291072 | J33: 337.634 | K33: 5252.648 | L33: 44
A34: 46.2 | B34: 30675.91526 | C34: 36960 | D34: 24675.91526 | E34: 6000 | F34: 663.9808499 | G34: 800 | H34: 534.11072 | I34: -6924.291072 | J34: 324.88016 | K34: 6284.084736 | L34: 46.2
A35: 48.4 | B35: 31377.63395 | C35: 38720 | D35: 25377.63395 | E35: 6000 | F35: 648.2982221 | G35: 800 | H35: 524.33128 | I35: -5164.291072 | J35: 313.22984 | K35: 7342.366048 | L35: 48.4
A36: 50.6 | B36: 32054.93581 | C36: 40480 | D36: 26054.93581 | E36: 6000 | F36: 633.4967551 | G36: 800 | H36: 514.91968 | I36: -3404.291072 | J36: 302.68304 | K36: 8425.064192 | L36: 50.6
A37: 52.8 | B37: 32710.24858 | C37: 42240 | D37: 26710.24858 | E37: 6000 | F37: 619.5122836 | G37: 800 | H37: 505.87592 | I37: -1644.291072 | J37: 293.23976 | K37: 9529.751424 | L37: 52.8
A38: 55 | B38: 33346 | C38: 44000 | D38: 27346 | E38: 6000 | F38: 606.2909091 | G38: 800 | H38: 497.2 | I38: 115.708928 | J38: 284.9 | K38: 10654 | L38: 55
A39: 57.2 | B39: 33964.61782 | C39: 45760 | D39: 27964.61782 | E39: 6000 | F39: 593.7870249 | G39: 800 | H39: 488.89192 | I39: 1875.708928 | J39: 277.66376 | K39: 11795.38218 | L39: 57.2
A40: 59.4 | B40: 34568.52979 | C40: 47520 | D40: 28568.52979 | E40: 6000 | F40: 581.961781 | G40: 800 | H40: 480.95168 | I40: 3635.708928 | J40: 271.53104 | K40: 12951.47021 | L40: 59.4
A41: 61.6 | B41: 35160.16365 | C41: 49280 | D41: 29160.16365 | E41: 6000 | F41: 570.7818774 | G41: 800 | H41: 473.37928 | I41: 5395.708928 | J41: 266.50184 | K41: 14119.83635 | L41: 61.6
A42: 63.8 | B42: 35741.94714 | C42: 51040 | D42: 29741.94714 | E42: 6000 | F42: 560.2186071 | G42: 800 | H42: 466.17472 | I42: 7155.708928 | J42: 262.57616 | K42: 15298.05286 | L42: 63.8
A43: 66 | B43: 36316.308 | C43: 52800 | D43: 30316.308 | E43: 6000 | F43: 550.2470909 | G43: 800 | H43: 459.338 | I43: 8915.708928 | J43: 259.754 | K43: 16483.692 | L43: 66
A44: 68.2 | B44: 36885.67398 | C44: 54560 | D44: 30885.67398 | E44: 6000 | F44: 540.8456596 | G44: 800 | H44: 452.86912 | I44: 10675.70893 | J44: 258.03536 | K44: 17674.32602 | L44: 68.2
A45: =A44+$A$14 -> 70.4 | B45: 37452.47283 | C45: 56320 | D45: 31452.47283 | E45: 6000 | F45: 531.9953527 | G45: 800 | H45: 446.76808 | I45: 12435.70893 | J45: 257.42024 | K45: =C45-B45 -> 18867.52717 | L45: 70.4
A46: 72.6 | B46: 38019.13229 | C46: 58080 | D46: 32019.13229 | E46: 6000 | F46: 523.6795081 | G46: 800 | H46: 441.03488 | I46: 14195.70893 | J46: =($C$9*(A46*A46))+($D$9*A46)+($E$9) -> 257.90864 | K46: 20060.86771 | L46: 72.6
A47: 74.8 | B47: 38588.0801 | C47: 59840 | D47: 32588.0801 | E47: 6000 | F47: 515.8834237 | G47: 800 | H47: 435.66952 | I47: 15955.70893 | J47: 259.50056 | K47: 21251.9199 | L47: =L46+$L$14 -> 74.8
A48: 77 | B48: 39161.744 | C48: 61600 | D48: 33161.744 | E48: 6000 | F48: 508.5940779 | G48: 800 | H48: 430.672 | I48: 17715.70893 | J48: 262.196 | K48: 22438.256 | L48: 77
A49: 79.2 | B49: 39742.55174 | C49: 63360 | D49: 33742.55174 | E49: 6000 | F49: 501.7998958 | G49: 800 | H49: 426.04232 | I49: 19475.70893 | J49: 265.99496 | K49: 23617.44826 | L49: 79.2
A50: 81.4 | B50: 40332.93107 | C50: 65120 | D50: 34332.93107 | E50: 6000 | F50: 495.4905537 | G50: 800 | H50: 421.78048 | I50: 21235.70893 | J50: 270.89744 | K50: 24787.06893 | L50: 81.4
A51: 83.6 | B51: 40935.30973 | C51: 66880 | D51: 34935.30973 | E51: 6000 | F51: 489.6568149 | G51: 800 | H51: 417.88648 | I51: 22995.70893 | J51: 276.90344 | K51: 25944.69027 | L51: 83.6
A52: 85.8 | B52: 41552.11546 | C52: 68640 | D52: 35552.11546 | E52: 6000 | F52: 484.2903899 | G52: 800 | H52: 414.36032 | I52: 24755.70893 | J52: 284.01296 | K52: 27087.88454 | L52: 85.8
A53: 88 | B53: 42185.776 | C53: 70400 | D53: 36185.776 | E53: 6000 | F53: 479.3838182 | G53: 800 | H53: 411.202 | I53: 26515.70893 | J53: 292.226 | K53: 28214.224 | L53: 88
A54: 90.2 | B54: 42838.7191 | C54: 72160 | D54: 36838.7191 | E54: 6000 | F54: 474.930367 | G54: 800 | H54: 408.41152 | I54: 28275.70893 | J54: 301.54256 | K54: 29321.2809 | L54: 90.2
A55: 92.4 | B55: 43513.37251 | C55: 73920 | D55: 37513.37251 | E55: 6000 | F55: 470.9239449 | G55: 800 | H55: 405.98888 | I55: 30035.70893 | J55: 311.96264 | K55: 30406.62749 | L55: 92.4
A56: 94.6 | B56: 44212.16397 | C56: 75680 | D56: 38212.16397 | E56: 6000 | F56: 467.3590271 | G56: 800 | H56: 403.93408 | I56: 31795.70893 | J56: 323.48624 | K56: 31467.83603 | L56: 94.6
A57: 96.8 | B57: 44937.52122 | C57: 77440 | D57: 38937.52122 | E57: 6000 | F57: 464.2305911 | G57: 800 | H57: 402.24712 | I57: 33555.70893 | J57: 336.11336 | K57: 32502.47878 | L57: 96.8
A58: 99 | B58: 45691.872 | C58: 79200 | D58: 39691.872 | E58: 6000 | F58: 461.5340606 | G58: 800 | H58: 400.928 | I58: 35315.70893 | J58: 349.844 | K58: 33508.128 | L58: 99
A59: 101.2 | B59: 46477.64406 | C59: 80960 | D59: 40477.64406 | E59: 6000 | F59: 459.2652575 | G59: 800 | H59: 399.97672 | I59: 37075.70893 | J59: 364.67816 | K59: 34482.35594 | L59: 101.2
A60: 103.4 | B60: 47297.26515 | C60: 82720 | D60: 41297.26515 | E60: 6000 | F60: 457.4203593 | G60: 800 | H60: 399.39328 | I60: 38835.70893 | J60: 380.61584 | K60: 35422.73485 | L60: 103.4
A61: =A60+$A$14 -> 105.6 | B61: 48153.16301 | C61: 84480 | D61: 42153.16301 | E61: 6000 | F61: 455.9958618 | G61: 800 | H61: 399.17768 | I61: 40595.70893 | J61: 397.65704 | K61: 36326.83699 | L61: 105.6
A62: 107.8 | B62: 49047.76538 | C62: 86240 | D62: 43047.76538 | E62: 6000 | F62: 454.9885471 | G62: 800 | H62: 399.32992 | I62: 42355.70893 | J62: 415.80176 | K62: 37192.23462 | L62: 107.8
A63: 110 | B63: 49983.5 | C63: 88000 | D63: 43983.5 | E63: 6000 | F63: 454.3954545 | G63: 800 | H63: 399.85 | I63: 44115.70893 | J63: 435.05 | K63: 38016.5 | L63: 110
A64: 112.2 | B64: 50962.79462 | C64: 89760 | D64: 44962.79462 | E64: 6000 | F64: 454.2138558 | G64: 800 | H64: 400.73792 | I64: 45875.70893 | J64: 455.40176 | K64: 38797.20538 | L64: 112.2
A65: 114.4 | B65: 51988.07699 | C65: 91520 | D65: 45988.07699 | E65: 6000 | F65: 454.4412324 | G65: 800 | H65: 401.99368 | I65: 47635.70893 | J65: 476.85704 | K65: 39531.92301 | L65: 114.4
A66: 116.6 | B66: 53061.77485 | C66: 93280 | D66: 47061.77485 | E66: 6000 | F66: 455.075256 | G66: 800 | H66: 403.61728 | I66: 49395.70893 | J66: 499.41584 | K66: 40218.22515 | L66: 116.6
A67: 118.8 | B67: 54186.31594 | C67: 95040 | D67: 48186.31594 | E67: 6000 | F67: 456.1137705 | G67: 800 | H67: 405.60872 | I67: 51155.70893 | J67: 523.07816 | K67: 40853.68406 | L67: 118.8
A68: 121 | B68: 55364.128 | C68: 96800 | D68: 49364.128 | E68: 6000 | F68: 457.5547769 | G68: 800 | H68: 407.968 | I68: 52915.70893 | J68: 547.844 | K68: 41435.872 | L68: 121
A69: 123.2 | B69: 56597.63878 | C69: 98560 | D69: 50597.63878 | E69: 6000 | F69: 459.3964187 | G69: 800 | H69: 410.69512 | I69: 54675.70893 | J69: 573.71336 | K69: 41962.36122 | L69: 123.2
A70: 125.4 | B70: 57889.27603 | C70: 100320 | D70: 51889.27603 | E70: 6000 | F70: 461.63697 | G70: 800 | H70: 413.79008 | I70: 56435.70893 | J70: 600.68624 | K70: 42430.72397 | L70: 125.4
A71: 127.6 | B71: 59241.46749 | C71: 102080 | D71: 53241.46749 | E71: 6000 | F71: 464.2748236 | G71: 800 | H71: 417.25288 | I71: 58195.70893 | J71: 628.76264 | K71: 42838.53251 | L71: 127.6
A72: 129.8 | B72: 60656.6409 | C72: 103840 | D72: 54656.6409 | E72: 6000 | F72: 467.3084815 | G72: 800 | H72: 421.08352 | I72: 59955.70893 | J72: 657.94256 | K72: 43183.3591 | L72: 129.8
A73: =A72+$A$14 -> 132 | B73: 62137.224 | C73: 105600 | D73: 56137.224 | E73: 6000 | F73: 470.7365455 | G73: 800 | H73: 425.282 | I73: 61715.70893 | J73: 688.226 | K73: 43462.776 | L73: 132
A74: 134.2 | B74: 63685.64454 | C74: 107360 | D74: 57685.64454 | E74: 6000 | F74: 474.557709 | G74: 800 | H74: 429.84832 | I74: 63475.70893 | J74: 719.61296 | K74: 43674.35546 | L74: 134.2
A75: 136.4 | B75: 65304.33027 | C75: 109120 | D75: 59304.33027 | E75: 6000 | F75: 478.7707498 | G75: 800 | H75: 434.78248 | I75: 65235.70893 | J75: 752.10344 | K75: 43815.66973 | L75: 136.4
A76: 138.6 | B76: 66995.70893 | C76: 110880 | D76: 60995.70893 | E76: 6000 | F76: 483.3745233 | G76: 800 | H76: 440.08448 | I76: 66995.70893 | J76: 785.69744 | K76: 43884.29107 | L76: 138.6
A77: 140.8 | B77: 68762.20826 | C77: 112640 | D77: 62762.20826 | E77: 6000 | F77: 488.3679564 | G77: 800 | H77: 445.75432 | I77: 68755.70893 | J77: 820.39496 | K77: =C77-B77 -> 43877.79174 | L77: 140.8
A78: 143 | B78: 70606.256 | C78: 114400 | D78: 64606.256 | E78: 6000 | F78: 493.750042 | G78: 800 | H78: 451.792 | I78: =C78-$J$3 -> 70515.70893 | J78: =($C$9*(A78*A78))+($D$9*A78)+($E$9) -> 856.196 | K78: 43793.744 | L78: 143
A79: 145.2 | B79: 72530.2799 | C79: 116160 | D79: 66530.2799 | E79: 6000 | F79: 499.519834 | G79: =$J$2 -> 800 | H79: 458.19752 | I79: 72275.70893 | J79: 893.10056 | K79: 43629.7201 | L79: =L78+$L$14 -> 145.2
A80: =A79+$A$14 -> 147.4 | B80: 74536.70771 | C80: 117920 | D80: 68536.70771 | E80: 6000 | F80: 505.6764431 | G80: 800 | H80: 464.97088 | I80: 74035.70893 | J80: 931.10864 | K80: 43383.29229 | L80: 147.4
A81: 149.6 | B81: 76627.96717 | C81: 119680 | D81: 70627.96717 | E81: 6000 | F81: 512.2190319 | G81: 800 | H81: 472.11208 | I81: 75795.70893 | J81: 970.22024 | K81: 43052.03283 | L81: 149.6
A82: 151.8 | B82: 78806.48602 | C82: 121440 | D82: 72806.48602 | E82: 6000 | F82: 519.1468117 | G82: 800 | H82: 479.62112 | I82: 77555.70893 | J82: 1010.43536 | K82: 42633.51398 | L82: 151.8
A83: 154 | B83: 81074.692 | C83: 123200 | D83: 75074.692 | E83: 6000 | F83: 526.459039 | G83: 800 | H83: 487.498 | I83: 79315.70893 | J83: 1051.754 | K83: 42125.308 | L83: 154
A84: 156.2 | B84: 83435.01286 | C84: 124960 | D84: 77435.01286 | E84: 6000 | F84: 534.1550119 | G84: 800 | H84: 495.74272 | I84: 81075.70893 | J84: 1094.17616 | K84: 41524.98714 | L84: 156.2
A85: 158.4 | B85: 85889.87635 | C85: 126720 | D85: 79889.87635 | E85: 6000 | F85: 542.2340679 | G85: 800 | H85: 504.35528 | I85: 82835.70893 | J85: 1137.70184 | K85: 40830.12365 | L85: 158.4
A86: 160.6 | B86: 88441.71021 | C86: 128480 | D86: 82441.71021 | E86: 6000 | F86: 550.6955804 | G86: 800 | H86: 513.33568 | I86: 84595.70893 | J86: 1182.33104 | K86: 40038.28979 | L86: 160.6
A87: 162.8 | B87: 91092.94218 | C87: 130240 | D87: 85092.94218 | E87: 6000 | F87: 559.5389569 | G87: 800 | H87: 522.68392 | I87: 86355.70893 | J87: 1228.06376 | K87: 39147.05782 | L87: 162.8
A88: 165 | B88: 93846 | C88: 132000 | D88: 87846 | E88: 6000 | F88: 568.7636364 | G88: 800 | H88: 532.4 | I88: 88115.70893 | J88: 1274.9 | K88: 38154 | L88: 165
A89: =A88+$A$14 -> 167.2 | B89: 96703.31142 | C89: 133760 | D89: 90703.31142 | E89: 6000 | F89: 578.3690875 | G89: 800 | H89: 542.48392 | I89: 89875.70893 | J89: 1322.83976 | K89: 37056.68858 | L89: 167.2
A90: 169.4 | B90: 99667.30419 | C90: 135520 | D90: 93667.30419 | E90: 6000 | F90: 588.3548063 | G90: 800 | H90: 552.93568 | I90: 91635.70893 | J90: 1371.88304 | K90: 35852.69581 | L90: 169.4
A91: 171.6 | B91: 102740.406 | C91: 137280 | D91: 96740.40605 | E91: 6000 | F91: 598.720315 | G91: 800 | H91: 563.75528 | I91: 93395.70893 | J91: 1422.02984 | K91: 34539.59395 | L91: 171.6
A92: 173.8 | B92: 105925.0447 | C92: 139040 | D92: 99925.04474 | E92: 6000 | F92: 609.4651596 | G92: 800 | H92: 574.94272 | I92: 95155.70893 | J92: 1473.28016 | K92: 33114.95526 | L92: 173.8
A93: 176 | B93: 109223.648 | C93: 140800 | D93: 103223.648 | E93: 6000 | F93: 620.5889091 | G93: 800 | H93: 586.498 | I93: 96915.70893 | J93: 1525.634 | K93: 31576.352 | L93: 176
A94: 178.2 | B94: =($B$2*(A94*A94*A94))+($C$2*(A94*A94))+($D$2*A94)+($E$2) -> 112638.6436 | C94: =$D$5*A94 -> 142560 | D94: =B94-$E$4 -> 106638.6436 | E94: =$E$4 -> 6000 | F94: =($C$6*(A94*A94))+($D$6*A94)+($E$6)+($F$6/A94) -> 632.0911537 | G94: 800 | H94: =($C$7*(A94*A94))+($D$7*A94)+($E$7) -> 598.42112 | I94: 98675.70893 | J94: 1579.09136 | K94: 29921.35642 | L94: 178.2
A95: =A94+$A$14 -> 180.4 | B95: 116172.4592 | C95: 144320 | D95: 110172.4592 | E95: 6000 | F95: 643.9715035 | G95: 800 | H95: 610.71208 | I95: 100435.7089 | J95: 1633.65224 | K95: 28147.54077 | L95: 180.4
A96: =A95+$A$14 -> 182.6 | B96: 119827.5227 | C96: 146080 | D96: 113827.5227 | E96: 6000 | F96: 656.2295876 | G96: 800 | H96: 623.37088 | I96: 102195.7089 | J96: 1689.31664 | K96: 26252.47731 | L96: 182.6
A97: 184.8 | B97: 123606.2617 | C97: 147840 | D97: 117606.2617 | E97: 6000 | F97: 668.8650525 | G97: 800 | H97: 636.39752 | I97: 103955.7089 | J97: 1746.08456 | K97: 24233.7383 | L97: 184.8
A98: 187 | B98: 127511.104 | C98: 149600 | D98: 121511.104 | E98: 6000 | F98: 681.8775615 | G98: 800 | H98: 649.792 | I98: 105715.7089 | J98: 1803.956 | K98: 22088.896 | L98: 187
A99: 189.2 | B99: 131544.4773 | C99: 151360 | D99: 125544.4773 | E99: 6000 | F99: 695.2667936 | G99: 800 | H99: 663.55432 | I99: 107475.7089 | J99: 1862.93096 | K99: 19815.52266 | L99: 189.2
A100: 191.4 | B100: 135708.8095 | C100: 153120 | D100: 129708.8095 | E100: 6000 | F100: 709.0324424 | G100: 800 | H100: 677.68448 | I100: 109235.7089 | J100: 1923.00944 | K100: 17411.19053 | L100: 191.4
A101: 193.6 | B101: 140006.5281 | C101: 154880 | D101: 134006.5281 | E101: 6000 | F101: 723.1742155 | G101: 800 | H101: 692.18248 | I101: 110995.7089 | J101: 1984.19144 | K101: 14873.47187 | L101: 193.6
A102: 195.8 | B102: 144440.0611 | C102: 156640 | D102: 138440.0611 | E102: 6000 | F102: 737.6918338 | G102: 800 | H102: 707.04832 | I102: 112755.7089 | J102: 2046.47696 | K102: 12199.93894 | L102: 195.8
A103: 198 | B103: 149011.836 | C103: 158400 | D103: 143011.836 | E103: 6000 | F103: 752.5850303 | G103: 800 | H103: 722.282 | I103: 114515.7089 | J103: 2109.866 | K103: 9388.164 | L103: 198
A104: 200.2 | B104: 153724.2807 | C104: 160160 | D104: 147724.2807 | E104: 6000 | F104: 767.85355 | G104: 800 | H104: 737.88352 | I104: 116275.7089 | J104: 2174.35856 | K104: 6435.719296 | L104: 200.2
A105: 202.4 | B105: 158579.8229 | C105: 161920 | D105: 152579.8229 | E105: 6000 | F105: 783.4971488 | G105: 800 | H105: 753.85288 | I105: 118035.7089 | J105: 2239.95464 | K105: 3340.177088 | L105: 202.4
A106: 204.6 | B106: 163580.8904 | C106: 163680 | D106: 157580.8904 | E106: 6000 | F106: 799.5155932 | G106: 800 | H106: 770.19008 | I106: 119795.7089 | J106: 2306.65424 | K106: 99.109632 | L106: 204.6
A107: 206.8 | B107: 168729.9108 | C107: 165440 | D107: 162729.9108 | E107: 6000 | F107: 815.9086597 | G107: 800 | H107: 786.89512 | I107: 121555.7089 | J107: 2374.45736 | K107: -3289.910816 | L107: 206.8
A108: 209 | B108: 174029.312 | C108: 167200 | D108: 168029.312 | E108: 6000 | F108: 832.676134 | G108: 800 | H108: 803.968 | I108: 123315.7089 | J108: 2443.364 | K108: -6829.312 | L108: 209
A109: 211.2 | B109: 179481.5217 | C109: 168960 | D109: 173481.5217 | E109: 6000 | F109: 849.8178109 | G109: 800 | H109: 821.40872 | I109: 125075.7089 | J109: 2513.37416 | K109: -10521.52166 | L109: 211.2
A110: 213.4 | B110: 185088.9676 | C110: 170720 | D110: 179088.9676 | E110: 6000 | F110: 867.3334937 | G110: 800 | H110: 839.21728 | I110: 126835.7089 | J110: 2584.48784 | K110: -14368.96755 | L110: 213.4
A111: =A110+$A$14 -> 215.6 | B111: 190854.0774 | C111: 172480 | D111: 184854.0774 | E111: 6000 | F111: 885.2229935 | G111: 800 | H111: 857.39368 | I111: 128595.7089 | J111: 2656.70504 | K111: -18374.07741 | L111: 215.6
A112: 217.8 | B112: 196779.279 | C112: 174240 | D112: 190779.279 | E112: 6000 | F112: 903.4861294 | G112: 800 | H112: 875.93792 | I112: 130355.7089 | J112: 2730.02576 | K112: -22539.27898 | L112: 217.8
A113: =B10 -> 220 | B113: 202867 | C113: 176000 | D113: 196867 | E113: 6000 | F113: 922.1227273 | G113: 800 | H113: 894.85 | I113: 132115.7089 | J113: 2804.45 | K113: -26867 | L113: =B10 -> 220

Sheet Gesamtkosten
J2: 8

Sheet Stückkosten

Sheet Gewinn

Sheet Funktionen
B2: Aufgabe 1 | F2: harmonisierende Werte | H2: Aufgabe 2 | L2: harmonisierende Werte
A3: Funktion | B3: aX3 | C3: bX2 | D3: cX | E3: d | F3: Preis | G3: Xmax | H3: aX3 | I3: bX2 | J3: cX | K3: d | L3: Preis | M3: Xmax
A4: K | B4: 0.1 | C4: -2 | D4: 15 | E4: 50 | F4: 8 | G4: 16 | H4: 0.5 | I4: -4 | J4: 70 | K4: 400 | L4: 150 | M4: 16
B6: Aufgabe 3 | F6: harmonisierende Werte | H6: Aufgabe 4 | L6: harmonisierende Werte
A7: Funktion | B7: aX3 | C7: bX2 | D7: cX | E7: d | F7: Preis | G7: Xmax | H7: aX3 | I7: bX2 | J7: cX | K7: d | L7: Preis | M7: Xmax
A8: K | B8: 0.333333333 | C8: -10 | D8: 115 | E8: 272.25 | F8: 70 | G8: 25 | H8: 1 | I8: -9 | J8: 30 | K8: 16 | L8: 16 | M8: 8
N9: 1/25 | O9: =1/25 -> 0.04
B10: Aufgabe 5 | F10: harmonisierende Werte | H10: Aufgabe 6 | L10: harmonisierende Werte | N10: 1/75 | O10: =1/75 -> 0.01333333333
A11: Funktion | B11: aX3 | C11: bX2 | D11: cX | E11: d | F11: Preis | G11: Xmax | H11: aX3 | I11: bX2 | J11: cX | K11: d | L11: Preis | M11: Xmax | N11: 1/40 | O11: =1/40 -> 0.025
A12: K | B12: 5 | C12: -60 | D12: 250 | E12: 200 | F12: 140 | G12: 10 | H12: 0.038 | I12: -8.04 | J12: 824.45 | K12: 6000 | L12: 600 | M12: 220 | N12: 1/60 | O12: =1/60 -> 0.01666666667
N13: 1/80 | O13: =1/80 -> 0.0125
B14: Aufgabe 7 | F14: harmonisierende Werte | H14: Aufgabe 8 | L14: harmonisierende Werte | N14: 1/90 | O14: =1/90 -> 0.01111111111
A15: Funktion | B15: aX3 | C15: bX2 | D15: cX | E15: d | F15: Preis | G15: Xmax | H15: aX3 | I15: bX2 | J15: cX | K15: d | L15: Preis | M15: Xmax | N15: 1/20 | O15: 0.05
A16: K | B16: 0.083 | C16: -8.4 | D16: 790 | E16: 5900 | F16: 800 | G16: 100 | H16: 0.25 | I16: -2 | J16: 10 | K16: 100 | L16: 40 | M16: 16 | N16: 1/60 | O16: 0.01666666667
N17: 1/80 | O17: 0.0125
B18: Aufgabe 9 | F18: harmonisierende Werte | H18: Aufgabe 10 | L18: harmonisierende Werte | N18: 1/90 | O18: 0.01111111111
A19: Funktion | B19: aX3 | C19: bX2 | D19: cX | E19: d | F19: Preis | G19: Xmax | H19: aX3 | I19: bX2 | J19: cX | K19: d | L19: Preis | M19: Xmax | N19: 1/45 | O19: =1/45 -> 0.02222222222
A20: K | B20: 5 | C20: -60 | D20: 250 | E20: 200 | F20: 200 | G20: 12 | H20: 0.0033 | I20: -0.25 | J20: 10 | K20: 1016 | L20: 30 | M20: 120 | N20: 1/8 | O20: 0.125
B22: Aufgabe 11 | F22: harmonisierende Werte | H22: Aufgabe 12 | L22: harmonisierende Werte
A23: Funktion | B23: aX3 | C23: bX2 | D23: cX | E23: d | F23: Preis | G23: Xmax | H23: aX3 | I23: bX2 | J23: cX | K23: d | L23: Preis | M23: Xmax
A24: K | B24: 0.01 | C24: -1 | D24: 100 | E24: 720 | F24: 100 | G24: 100 | H24: 0.001 | I24: -0.5 | J24: 100 | K24: 720 | L24: 75 | M24: 500
B26: Aufgabe 3 | F26: harmonisierende Werte | H26: Aufgabe 14 | L26: harmonisierende Werte
A27: Funktion | B27: aX3 | C27: bX2 | D27: cX | E27: d | F27: Preis | G27: Xmax | H27: aX3 | I27: bX2 | J27: cX | K27: d | L27: Preis | M27: Xmax
A28: K | D28: 0.5 | E28: 3 | F28: 1 | G28: 10 | H28: 0.1 | I28: -5.3 | J28: 120 | K28: 300 | L28: 75 | M28: 45
B30: Aufgabe 15 | F30: harmonisierende Werte | H30: Aufgabe 16 | L30: harmonisierende Werte
A31: Funktion | B31: aX3 | C31: bX2 | D31: cX | E31: d | F31: Preis | G31: Xmax | H31: aX3 | I31: bX2 | J31: cX | K31: d | L31: Preis | M31: Xmax
A32: K | B32: 0.01 | C32: -1.3 | D32: 70 | E32: 400 | F32: 90 | G32: 150 | J32: 20 | K32: 10000 | L32: 200 | M32: 200
B34: Aufgabe 15 | F34: harmonisierende Werte | H34: Aufgabe 16 | L34: harmonisierende Werte
A35: Funktion | B35: aX3 | C35: bX2 | D35: cX | E35: d | F35: Preis | G35: Xmax | H35: aX3 | I35: bX2 | J35: cX | K35: d | L35: Preis | M35: Xmax
A36: K
